bitfinex/quotes_BTCUSD_20250927
["timestamp","ask_amount","ask_price","bid_price","bid_amount"]
[1758997035699,7.61069641,109680.0,109670.0,0.52917717]
[1758997035921,7.58326228,109680.0,109670.0,0.52917717]
[1758997040855,7.58326228,109680.0,109670.0,0.55660926]
[1758997046657,7.58325795,109680.0,109670.0,0.55660926]
[1758997047907,7.58325795,109680.0,109670.0,0.27124926]
[1758997048111,7.58325795,109680.0,109670.0,0.65184926]
[1758997051818,7.58325795,109680.0,109670.0,0.65180926]
[1758997056647,7.40499306,109680.0,109670.0,0.65180926]
[1758997060029,7.04867471,109680.0,109670.0,0.65180926]
[1758997060263,7.40499306,109680.0,109670.0,0.65180926]
[1758997061269,7.40499306,109680.0,109670.0,0.64980926]
[1758997061696,7.40499306,109680.0,109670.0,0.65380926]
[1758997064821,7.04867471,109680.0,109670.0,0.65380926]
[1758997065050,7.40499306,109680.0,109670.0,0.65380926]
[1758997069707,7.03437224,109680.0,109670.0,0.65380926]
[1758997071368,6.69437224,109680.0,109670.0,0.65380926]
[1758997071807,7.03437224,109680.0,109670.0,0.55864926]
[1758997072019,7.39069059,109680.0,109670.0,0.64842926]
[1758997072228,7.39069059,109680.0,109670.0,0.64846926]
[1758997072440,7.39069059,109680.0,109670.0,0.26802926]
[1758997072850,7.40139667,109680.0,109670.0,0.64854926]
[1758997076837,7.40139667,109680.0,109670.0,0.65055926]
[1758997079248,7.04507832,109680.0,109670.0,0.65055926]
[1758997079399,7.40139667,109680.0,109670.0,0.65055926]
[1758997079617,7.40139667,109680.0,109670.0,0.65379926]
[1758997083961,7.40139971,109680.0,109670.0,0.65379926]
[1758997084927,7.40139977,109680.0,109670.0,0.65379926]
[1758997085153,7.40139977,109680.0,109670.0,0.27327926]
[1758997085345,7.40139977,109680.0,109670.0,0.65371926]
[1758997086280,6.86538575,109680.0,109670.0,0.65371926]
[1758997086529,8.71344272,109680.0,109670.0,0.65371926]
[1758997092736,8.71344412,109680.0,109670.0,0.65371926]
[1758997093460,8.37344412,109680.0,109670.0,0.65371926]
[1758997103180,8.01712577,109680.0,109670.0,0.65371926]
[1758997103412,8.37344412,109680.0,109670.0,0.65371926]
[1758997114237,8.37344776,109680.0,109670.0,0.65371926]
[1758997116612,8.55153699,109680.0,109670.0,0.65371926]
[1758997121912,8.55153699,109680.0,109670.0,0.27003926]
[1758997122127,8.55153699,109680.0,109670.0,0.55310926]
[1758997122372,8.55153699,109680.0,109670.0,0.64810926]
[1758997122831,8.55153699,109680.0,109670.0,0.26802926]
[1758997123073,8.55153699,109680.0,109670.0,0.64810926]
[1758997125616,8.55153699,109680.0,109670.0,0.26802926]
[1758997125841,8.55153699,109680.0,109670.0,0.55310926]
[1758997126091,8.55153699,109680.0,109670.0,0.64814926]
[1758997127022,8.39151677,109680.0,109670.0,0.64814926]
[1758997127246,8.54083089,109680.0,109670.0,0.64814926]
[1758997130718,8.55144679,109680.0,109670.0,0.64814926]
[1758997131609,8.01703921,109680.0,109670.0,0.65020926]
[1758997132043,8.55144679,109680.0,109670.0,0.65020926]
[1758997135821,8.55144668,109680.0,109670.0,0.65020926]
[1758997141715,8.55144668,109680.0,109670.0,0.65345926]
[1758997142124,8.0170391,109680.0,109670.0,0.65345926]
[1758997142333,8.55144668,109680.0,109670.0,0.65345926]
[1758997142755,8.0170391,109680.0,109670.0,0.65345926]
[1758997142963,8.55144668,109680.0,109670.0,0.65345926]
[1758997145409,8.34757452,109680.0,109670.0,0.65345926]
[1758997145626,8.55144668,109680.0,109670.0,0.65345926]
[1758997146371,8.28424289,109680.0,109670.0,0.65345926]
[1758997147403,8.55144668,109680.0,109670.0,0.65345926]
[1758997147960,8.54644668,109680.0,109670.0,0.65345926]
[1758997149297,8.0120391,109680.0,109670.0,0.65345926]
[1758997149512,8.27924289,109680.0,109670.0,0.65345926]
[1758997150798,8.25924289,109680.0,109670.0,0.65345926]
[1758997154179,8.26956463,109680.0,109670.0,0.65345926]
[1758997162837,8.08021351,109680.0,109670.0,0.65345926]
[1758997163034,8.27752553,109680.0,109670.0,0.65345926]
[1758997164523,8.28394808,109680.0,109670.0,0.65345926]
[1758997168441,8.0550077,109680.0,109670.0,0.65345926]
[1758997171447,8.01674429,109680.0,109670.0,0.65345926]
[1758997171651,8.28394808,109680.0,109670.0,0.65345926]
[1758997176369,8.28394808,109680.0,109670.0,0.65020926]
[1758997176604,8.01674429,109680.0,109670.0,0.65341926]
[1758997176813,8.28394808,109680.0,109670.0,0.65341926]
[1758997178654,8.01674429,109680.0,109670.0,0.65341926]
[1758997180413,8.01674429,109680.0,109670.0,0.26802926]
[1758997180632,8.01674429,109680.0,109670.0,0.64798926]
[1758997181779,8.01674429,109680.0,109670.0,0.65009926]
[1758997182006,8.01674429,109680.0,109670.0,0.65330926]
[1758997195294,8.01674509,109680.0,109670.0,0.65330926]
[1758997199766,8.01674508,109680.0,109670.0,0.65330926]
[1758997200810,8.01674508,109680.0,109670.0,0.65009926]
[1758997202435,8.01674508,109680.0,109670.0,0.65330926]
[1758997204341,8.01674508,109680.0,109670.0,0.64798926]
[1758997204586,8.01674508,109680.0,109670.0,0.55294926]
[1758997204746,8.01674508,109680.0,109670.0,0.64794926]
[1758997205184,8.01674508,109680.0,109670.0,0.26802926]
[1758997205625,8.01674508,109680.0,109670.0,0.64794926]
[1758997207952,8.01674508,109680.0,109670.0,0.55294926]
[1758997208089,8.01674508,109680.0,109670.0,0.64794926]
[1758997208776,8.01674508,109680.0,109670.0,0.26802926]
[1758997209006,8.01674508,109680.0,109670.0,0.64794926]
[1758997211132,8.01674508,109680.0,109670.0,0.26802926]
[1758997211364,8.37298295,109680.0,109670.0,0.64794926]
[1758997211574,8.37298295,109680.0,109670.0,0.26802926]
[1758997211805,8.37298295,109680.0,109670.0,0.64794926]
[1758997212191,8.37298295,109680.0,109670.0,0.26802926]
[1758997212453,8.37298295,109680.0,109670.0,0.64790926]
[1758997213823,8.01674508,109680.0,109670.0,0.55290926]
[1758997214013,8.37298295,109680.0,109670.0,0.64790926]
[1758997214166,8.37298295,109680.0,109670.0,0.55290926]
[1758997214366,8.37298295,109680.0,109670.0,0.64790926]
[1758997215769,8.37298295,109680.0,109670.0,0.26802926]
[1758997216084,8.37298295,109680.0,109670.0,0.55290926]
[1758997216301,8.01674508,109680.0,109670.0,0.64790926]
[1758997216537,8.37298295,109680.0,109670.0,0.55290926]
[1758997216777,8.37298295,109680.0,109670.0,0.64790926]
[1758997218096,8.37298295,109680.0,109670.0,0.64988926]
[1758997218265,8.01674508,109680.0,109670.0,0.65305926]
[1758997218874,7.81718581,109680.0,109670.0,0.65305926]
[1758997219096,8.00642334,109680.0,109670.0,0.65305926]
[1758997219941,7.78476438,109680.0,109670.0,0.65305926]
[1758997220125,8.01831628,109680.0,109670.0,0.65305926]
[1758997224558,8.01831628,109680.0,109670.0,0.64988926]
[1758997224963,8.01831628,109680.0,109670.0,0.65283926]
[1758997231378,7.81924688,109680.0,109670.0,0.65283926]
[1758997231568,0.73445907,109690.0,109680.0,0.21250055]
[1758997231771,8.71058559,109690.0,109680.0,0.21250055]
[1758997232014,8.71058559,109690.0,109680.0,0.23721055]
[1758997232223,8.71700626,109690.0,109680.0,0.26464087]
[1758997232814,8.71700626,109690.0,109680.0,0.26664087]
[1758997234382,8.58377362,109690.0,109680.0,0.26664087]
[1758997234573,8.59807452,109690.0,109680.0,0.26664087]
[1758997235777,8.59807452,109690.0,109680.0,0.64652087]
[1758997236943,8.39417212,109690.0,109680.0,0.64652087]
[1758997237195,8.75040999,109690.0,109680.0,0.64652087]
[1758997238593,8.66136117,109690.0,109680.0,0.64652087]
[1758997240491,8.66136117,109690.0,109680.0,0.55152087]
[1758997240734,8.66136117,109690.0,109680.0,0.64652087]
[1758997245659,8.66136117,109690.0,109680.0,0.55152087]
[1758997245786,8.66136117,109690.0,109680.0,0.64652087]
[1758997248782,8.66136117,109690.0,109680.0,0.55152087]
[1758997248995,8.66136117,109690.0,109680.0,0.64652087]
[1758997258208,8.39417212,109690.0,109680.0,0.65170087]
[1758997258423,8.66136117,109690.0,109680.0,0.27182087]
[1758997258637,8.66136117,109690.0,109680.0,0.65166087]
[1758997261092,8.66136117,109690.0,109680.0,0.27182087]
[1758997261301,8.66136117,109690.0,109680.0,0.64854087]
[1758997263351,8.66136117,109690.0,109680.0,0.26870087]
[1758997263575,8.66136117,109690.0,109680.0,0.64854087]
[1758997264941,8.66136117,109690.0,109680.0,0.26870087]
[1758997265176,8.66136117,109690.0,109680.0,0.64854087]
[1758997268818,8.66136117,109690.0,109680.0,0.26870087]
[1758997269032,8.66136117,109690.0,109680.0,0.64854087]
[1758997276825,8.32136117,109690.0,109680.0,0.64854087]
[1758997280873,8.66136117,109690.0,109680.0,0.65157087]
[1758997289956,8.66136117,109690.0,109680.0,0.27173087]
[1758997290162,8.66136117,109690.0,109680.0,0.65153087]
[1758997290465,8.66136117,109690.0,109680.0,0.27173087]
[1758997290689,8.66136117,109690.0,109680.0,0.65149087]
[1758997293786,8.66136117,109690.0,109680.0,0.64640087]
[1758997294003,9.11088224,109690.0,109680.0,0.64640087]
[1758997294261,9.11088224,109690.0,109680.0,0.08429222]
[1758997294483,9.1364908,109690.0,109680.0,0.4366219]
[1758997295509,9.11088224,109690.0,109680.0,0.4366219]
[1758997298679,8.93283581,109690.0,109680.0,0.61897055]
[1758997299725,8.93283508,109690.0,109680.0,0.61897055]
[1758997309711,8.71969542,109690.0,109680.0,0.61897055]
[1758997311546,8.71969542,109690.0,109680.0,0.62096055]
[1758997312146,8.71969542,109690.0,109680.0,0.61897055]
[1758997313841,8.71969542,109690.0,109680.0,0.62410055]
[1758997315605,8.5373634,109690.0,109680.0,0.62410055]
[1758997316039,8.71969542,109690.0,109680.0,0.62410055]
[1758997318238,8.5373634,109690.0,109680.0,0.62410055]
[1758997318881,8.71969542,109690.0,109680.0,0.62410055]
[1758997320749,8.74712573,109690.0,109680.0,0.62410055]
[1758997321984,8.56479371,109690.0,109680.0,0.62410055]
[1758997324467,8.5647953,109690.0,109680.0,0.62410055]
[1758997325417,8.5647953,109690.0,109680.0,0.24434055]
[1758997325610,8.5647953,109690.0,109680.0,0.62402055]
[1758997326222,8.53736499,109690.0,109680.0,0.62402055]
[1758997327062,8.53736499,109690.0,109680.0,0.65145086]
[1758997328064,8.71969701,109690.0,109680.0,0.65145086]
[1758997328279,8.53736499,109690.0,109680.0,0.65145086]
[1758997328691,8.53736499,109690.0,109680.0,0.27177086]
[1758997328929,8.53736499,109690.0,109680.0,0.65145086]
[1758997331471,8.53736499,109690.0,109680.0,0.27177086]
[1758997331672,8.53736499,109690.0,109680.0,0.65145086]
[1758997334513,8.53736499,109690.0,109680.0,0.55645086]
[1758997334709,8.53736499,109690.0,109680.0,0.65145086]
[1758997339114,8.37516415,109690.0,109680.0,0.65145086]
[1758997339343,8.75050465,109690.0,109680.0,0.65145086]
[1758997341744,8.93283667,109690.0,109680.0,0.27177086]
[1758997342023,8.93283667,109690.0,109680.0,0.65141086]
[1758997346466,8.93283667,109690.0,109680.0,0.64827086]
[1758997350909,8.93283667,109690.0,109680.0,0.64823086]
[1758997351664,8.93283667,109690.0,109680.0,0.36164086]
[1758997351881,8.93283667,109690.0,109680.0,0.64624086]
[1758997354709,8.93283796,109690.0,109680.0,0.64624086]
[1758997355453,8.93283796,109690.0,109680.0,0.64839086]
[1758997355665,8.93283796,109690.0,109680.0,0.65143086]
[1758997360625,8.8437116,109690.0,109680.0,0.65143086]
[1758997365667,8.63813087,109690.0,109680.0,0.65143086]
[1758997365867,8.45596015,109690.0,109680.0,0.65143086]
[1758997367615,8.83336779,109690.0,109680.0,0.65143086]
[1758997371283,8.65103577,109690.0,109680.0,0.65143086]
[1758997372383,8.38383046,109690.0,109680.0,0.65143086]
[1758997372595,8.65103577,109690.0,109680.0,0.65143086]
[1758997374766,8.38383046,109690.0,109680.0,0.65143086]
[1758997374936,8.65103577,109690.0,109680.0,0.65143086]
[1758997381810,8.83336779,109690.0,109680.0,0.27183086]
[1758997382036,8.83336779,109690.0,109680.0,0.64616086]
[1758997382493,8.83336779,109690.0,109680.0,0.64824086]
[1758997384120,8.83336779,109690.0,109680.0,0.26872086]
[1758997384341,8.83336779,109690.0,109680.0,0.64824086]
[1758997386857,8.56616248,109690.0,109680.0,0.64824086]
[1758997387054,8.65103577,109690.0,109680.0,0.64824086]
[1758997387618,8.83336779,109690.0,109680.0,0.64824086]
[1758997391738,8.65103577,109690.0,109680.0,0.65147086]
[1758997392140,8.65103577,109690.0,109680.0,0.65143086]
[1758997420750,8.74008208,109690.0,109680.0,0.65143086]
[1758997422451,8.57641768,109690.0,109680.0,0.65143086]
[1758997422633,0.74008208,109690.0,109680.0,0.65143086]
[1758997422889,8.74008208,109690.0,109680.0,0.65143086]
[1758997426559,8.73365926,109690.0,109680.0,0.65143086]
[1758997426752,8.74008303,109690.0,109680.0,0.65143086]
[1758997434999,8.54883766,109690.0,109680.0,0.65143086]
[1758997435214,8.36267538,109690.0,109680.0,0.65143086]
[1758997436150,8.40056782,109690.0,109680.0,0.65143086]
[1758997440544,8.74056782,109690.0,109680.0,0.65143086]
[1758997441101,8.3843162,109690.0,109680.0,0.65143086]
[1758997441339,8.74056782,109690.0,109680.0,0.64820086]
[1758997443721,8.74056782,109690.0,109680.0,0.65140086]
[1758997443915,8.74056782,109690.0,109680.0,0.64932086]
[1758997444086,8.92289984,109690.0,109680.0,0.64596086]
[1758997444262,8.92289984,109690.0,109680.0,0.08429221]
[1758997444534,8.59225678,109690.0,109680.0,0.64592086]
[1758997444707,8.97593736,109690.0,109680.0,0.0568619]
[1758997444910,8.97593736,109690.0,109680.0,0.4361419]
[1758997445131,8.97593736,109690.0,109680.0,0.3411419]
[1758997445338,8.97593736,109690.0,109680.0,0.52349055]
[1758997445941,8.9503288,109690.0,109680.0,0.52349055]
[1758997449455,8.75798865,109690.0,109680.0,0.52349055]
[1758997451554,8.75798865,109690.0,109680.0,0.61849055]
[1758997453280,8.75798865,109690.0,109680.0,0.23921055]
[1758997453513,8.75798865,109690.0,109680.0,0.61849055]
[1758997464294,8.75798865,109690.0,109680.0,0.4361419]
[1758997464694,8.75798865,109690.0,109680.0,0.61849055]
[1758997465722,8.77228986,109690.0,109680.0,0.61849055]
[1758997468924,8.77228986,109690.0,109680.0,0.4361419]
[1758997482541,8.95052804,109690.0,109680.0,0.4361419]
[1758997482942,8.73768057,109690.0,109680.0,0.4361419]
[1758997492078,8.73768057,109690.0,109680.0,0.4381919]
[1758997497983,8.72337936,109690.0,109680.0,0.4381919]
[1758997500238,8.72337936,109690.0,109680.0,0.0589119]
[1758997500650,8.72337936,109690.0,109680.0,0.0568619]
[1758997500858,8.72337936,109690.0,109680.0,0.4359819]
[1758997501287,8.73768081,109690.0,109680.0,0.4359819]
[1758997501635,8.20319101,109690.0,109680.0,0.4359819]
[1758997501860,8.73768081,109690.0,109680.0,0.4359819]
[1758997506590,8.73768081,109690.0,109680.0,0.0568619]
[1758997507067,8.73768081,109690.0,109680.0,0.4359819]
[1758997511409,8.5425199,109690.0,109680.0,0.4359819]
[1758997514421,8.5425199,109690.0,109680.0,0.43573463]
[1758997515133,8.5425199,109690.0,109680.0,0.34069463]
[1758997515362,8.5425199,109690.0,109680.0,0.43569463]
[1758997515837,8.0080301,109690.0,109680.0,0.43569463]
[1758997516082,8.5425199,109690.0,109680.0,0.43569463]
[1758997522910,8.54251884,109690.0,109680.0,0.43569463]
[1758997523851,8.52821739,109690.0,109680.0,0.43569463]
[1758997530750,8.32321191,109690.0,109680.0,0.43569463]
[1758997531554,8.32321308,109690.0,109680.0,0.02671]
[1758997531732,8.32321308,109690.0,109680.0,0.40579]
[1758997532883,8.32321308,109690.0,109680.0,0.02671]
[1758997533084,8.32321308,109690.0,109680.0,0.40579]
[1758997533484,8.32321308,109690.0,109680.0,0.02671]
[1758997533718,8.32321308,109690.0,109680.0,0.40579]
[1758997535802,8.10560771,109690.0,109680.0,0.40579]
[1758997540423,8.11990928,109690.0,109680.0,0.40579]
[1758997541215,7.9179595,109690.0,109680.0,0.40579]
[1758997544520,7.73983927,109690.0,109680.0,0.40579]
[1758997545608,7.7255377,109690.0,109680.0,0.40579]
[1758997547244,7.7255377,109690.0,109680.0,0.40785]
[1758997550166,7.73983927,109690.0,109680.0,0.40785]
[1758997553887,7.73983927,109690.0,109680.0,0.40579]
[1758997554935,7.7255377,109690.0,109680.0,0.40579]
[1758997558236,7.73983927,109690.0,109680.0,0.40579]
[1758997558652,7.73983927,109690.0,109680.0,0.40794]
[1758997558845,7.73983927,109690.0,109680.0,0.41118]
[1758997561092,7.73983927,109690.0,109680.0,0.40794]
[1758997561305,7.73983927,109690.0,109680.0,0.40579]
[1758997562607,7.73983927,109690.0,109680.0,0.41118]
[1758997563056,7.73983927,109690.0,109680.0,0.40794]
[1758997568840,7.73983944,109690.0,109680.0,0.40794]
[1758997570655,7.73983944,109690.0,109680.0,0.41099]
[1758997572492,7.72553787,109690.0,109680.0,0.41099]
[1758997575862,7.72553787,109690.0,109680.0,0.41095]
[1758997579522,7.72553787,109690.0,109680.0,0.03191]
[1758997579676,7.72553787,109690.0,109680.0,0.41091]
[1758997582721,7.73983926,109690.0,109680.0,0.41091]
[1758997586233,7.73983926,109690.0,109680.0,0.03191]
[1758997586438,7.73983926,109690.0,109680.0,0.41091]
[1758997586828,7.72553787,109690.0,109680.0,0.41091]
[1758997590008,7.73983937,109690.0,109680.0,0.41091]
[1758997592524,7.73983937,109690.0,109680.0,0.03191]
[1758997592686,7.73983937,109690.0,109680.0,0.41091]
[1758997600358,7.73983937,109690.0,109680.0,0.03191]
[1758997600566,7.73983937,109690.0,109680.0,0.41091]
[1758997601617,7.72553787,109690.0,109680.0,0.41091]
[1758997602983,7.72553787,109690.0,109680.0,0.03191]
[1758997603227,7.75114643,109690.0,109680.0,0.40571]
[1758997603701,7.75114643,109690.0,109680.0,0.31071]
[1758997604935,7.76544798,109690.0,109680.0,0.31071]
[1758997605133,7.75114643,109690.0,109680.0,0.31071]
[1758997606641,7.9292968,109690.0,109680.0,0.31071]
[1758997607665,7.92929441,109690.0,109680.0,0.31071]
[1758997608404,7.94359596,109690.0,109680.0,0.31071]
[1758997609751,7.9179874,109690.0,109680.0,0.31071]
[1758997612673,7.9179874,109690.0,109680.0,0.02671]
[1758997612866,7.9179874,109690.0,109680.0,0.31067]
[1758997613546,7.9179874,109690.0,109680.0,0.02671]
[1758997613744,7.9179874,109690.0,109680.0,0.31067]
[1758997615112,7.9179874,109690.0,109680.0,0.02671]
[1758997615303,7.9179874,109690.0,109680.0,0.31067]
[1758997616361,7.90368585,109690.0,109680.0,0.31067]
[1758997619958,7.90368585,109690.0,109680.0,0.02671]
[1758997620131,7.90368585,109690.0,109680.0,0.31067]
[1758997620937,7.9179874,109690.0,109680.0,0.31067]
[1758997622930,7.71287404,109690.0,109680.0,0.31273]
[1758997626884,7.69857249,109690.0,109680.0,0.31273]
[1758997629514,7.49520598,109690.0,109680.0,0.31273]
[1758997629879,7.49520598,109690.0,109680.0,0.31063]
[1758997630080,7.50950753,109690.0,109680.0,0.31063]
[1758997632135,7.50950887,109690.0,109680.0,0.31063]
[1758997636276,6.97498893,109690.0,109680.0,0.31574]
[1758997636479,7.49520732,109690.0,109680.0,0.31574]
[1758997636698,7.49520732,109690.0,109680.0,0.31277]
[1758997639427,7.49520732,109690.0,109680.0,0.31063]
[1758997639645,7.49520732,109690.0,109680.0,0.02671]
[1758997639801,7.50950887,109690.0,109680.0,0.31063]
[1758997645751,7.49520732,109690.0,109680.0,0.31063]
[1758997647190,7.49520732,109690.0,109680.0,0.31262]
[1758997650275,7.50950887,109690.0,109680.0,0.31262]
[1758997657988,7.50950966,109690.0,109680.0,0.31262]
[1758997659882,7.49520811,109690.0,109680.0,0.31262]
[1758997662800,7.50950958,109690.0,109680.0,0.31569]
[1758997664677,7.50950958,109690.0,109680.0,0.31262]
[1758997665873,7.28804681,109690.0,109680.0,0.31262]
[1758997666754,7.10989579,109690.0,109680.0,0.31262]
[1758997666986,7.09559432,109690.0,109680.0,0.31569]
[1758997671358,7.10989579,109690.0,109680.0,0.31569]
[1758997672414,6.75352687,109690.0,109680.0,0.31569]
[1758997672651,7.10989579,109690.0,109680.0,0.31569]
[1758997679140,7.09559432,109690.0,109680.0,0.31569]
[1758997679350,7.09559432,109690.0,109680.0,0.31561]
[1758997680042,7.09559432,109690.0,109680.0,0.31254]
[1758997680996,7.09559432,109690.0,109680.0,0.0287]
[1758997681214,7.09559432,109690.0,109680.0,0.31254]
[1758997682371,7.10989578,109690.0,109680.0,0.31254]
[1758997685765,7.09559432,109690.0,109680.0,0.31254]
[1758997686429,7.45196324,109690.0,109680.0,0.31254]
[1758997686638,7.45196385,109690.0,109680.0,0.31254]
[1758997687621,7.45196385,109690.0,109680.0,0.31553]
[1758997690133,7.46626531,109690.0,109680.0,0.31553]
[1758997691349,7.46626531,109690.0,109680.0,0.31254]
[1758997697111,7.45196385,109690.0,109680.0,0.31254]
[1758997700212,7.46626531,109690.0,109680.0,0.31254]
[1758997702159,7.46626531,109690.0,109680.0,0.0287]
[1758997702375,7.46626531,109690.0,109680.0,0.31254]
[1758997703485,7.27655411,109690.0,109680.0,0.31254]
[1758997703864,7.27655411,109690.0,109680.0,0.0287]
[1758997704095,7.27655411,109690.0,109680.0,0.31254]
[1758997706594,7.27655411,109690.0,109680.0,0.31566]
[1758997706846,7.26225265,109690.0,109680.0,0.31566]
[1758997710206,7.27655412,109690.0,109680.0,0.31566]
[1758997716880,6.90588373,109690.0,109680.0,0.31254]
[1758997719926,6.9201852,109690.0,109680.0,0.31254]
[1758997726689,7.08405357,109690.0,109680.0,0.31254]
[1758997729955,7.09835504,109690.0,109680.0,0.31254]
[1758997730828,7.09835504,109690.0,109680.0,0.31569]
[1758997736532,7.08405357,109690.0,109680.0,0.31569]
[1758997738043,7.08405357,109690.0,109680.0,0.41069]
[1758997738844,6.90627448,109690.0,109680.0,0.41069]
[1758997739719,6.92057589,109690.0,109680.0,0.41069]
[1758997746397,6.90627448,109690.0,109680.0,0.41069]
[1758997749603,6.92057589,109690.0,109680.0,0.41069]
[1758997749801,6.90627448,109690.0,109680.0,0.41069]
[1758997752359,6.68834069,109690.0,109680.0,0.41069]
[1758997753698,6.68834062,109690.0,109680.0,0.41069]
[1758997755778,6.68834062,109690.0,109680.0,0.03185]
[1758997755991,6.68834062,109690.0,109680.0,0.41057]
[1758997756527,6.68834062,109690.0,109680.0,0.31557]
[1758997756732,6.68834062,109690.0,109680.0,0.41057]
[1758997760501,6.70264222,109690.0,109680.0,0.41057]
[1758997765144,6.68834062,109690.0,109680.0,0.41057]
[1758997771482,6.68834062,109690.0,109680.0,0.40543]
[1758997771777,6.95561,109690.0,109680.0,0.40543]
[1758997772111,6.9699116,109690.0,109680.0,0.40543]
[1758997775262,6.95561,109690.0,109680.0,0.40543]
[1758997782434,6.9699116,109690.0,109680.0,0.40543]
[1758997786468,6.9699116,109690.0,109680.0,0.40745]
[1758997786679,6.86658814,109690.0,109680.0,0.40745]
[1758997788719,6.63806506,109690.0,109680.0,0.40745]
[1758997790150,6.65236666,109690.0,109680.0,0.40745]
[1758997791172,6.65236666,109690.0,109680.0,0.40543]
[1758997793435,6.1136415,109690.0,109680.0,0.62305055]
[1758997793645,6.29597352,109690.0,109680.0,0.62305055]
[1758997795736,6.28167192,109690.0,109680.0,0.62305055]
[1758997797999,6.0993399,109690.0,109680.0,0.62305055]
[1758997800007,6.11364117,109690.0,109680.0,0.62305055]
[1758997803185,5.75724803,109690.0,109680.0,0.62305055]
[1758997803394,6.08621221,109690.0,109680.0,0.62305055]
[1758997803927,5.8977863,109690.0,109680.0,0.62305055]
[1758997804355,8.75501117,109690.0,109680.0,0.62305055]
[1758997806207,8.7407099,109690.0,109680.0,0.62305055]
[1758997808512,8.7407099,109690.0,109680.0,0.65047914]
[1758997809914,8.75501073,109690.0,109680.0,0.27175914]
[1758997810363,8.75501073,109690.0,109680.0,0.65035914]
[1758997813103,8.75499851,109690.0,109680.0,0.65035914]
[1758997816013,8.75499851,109690.0,109680.0,0.27175914]
[1758997816220,8.75499851,109690.0,109680.0,0.65035914]
[1758997816752,8.41499851,109690.0,109680.0,0.65035914]
[1758997816952,8.75499851,109690.0,109680.0,0.65035914]
[1758997818800,8.75499851,109690.0,109680.0,0.64835914]
[1758997819026,8.75499851,109690.0,109680.0,0.65335914]
[1758997819243,8.75499851,109690.0,109680.0,0.55835914]
[1758997819454,8.75499851,109690.0,109680.0,0.65335914]
[1758997819651,8.75499851,109690.0,109680.0,0.27475914]
[1758997819849,8.75499851,109690.0,109680.0,0.65335914]
[1758997820358,8.75499851,109690.0,109680.0,0.64823914]
[1758997820538,8.75499851,109690.0,109680.0,0.26963914]
[1758997820749,8.75499851,109690.0,109680.0,0.62081055]
[1758997820898,8.75499851,109690.0,109680.0,0.24221055]
[1758997821107,8.75499851,109690.0,109680.0,0.62081055]
[1758997822703,8.75499851,109690.0,109680.0,0.52581055]
[1758997822942,8.75499851,109690.0,109680.0,0.62081055]
[1758997823381,8.57782814,109690.0,109680.0,0.62081055]
[1758997824901,8.57782814,109690.0,109680.0,0.62077055]
[1758997825326,8.57782814,109690.0,109680.0,0.52577055]
[1758997825537,8.57782814,109690.0,109680.0,0.24221055]
[1758997825762,8.57782814,109690.0,109680.0,0.62077055]
[1758997825981,8.76016016,109690.0,109680.0,0.62077055]
[1758997826423,8.78036981,109690.0,109680.0,0.62077055]
[1758997826638,8.59803779,109690.0,109680.0,0.62077055]
[1758997826870,8.62546638,109690.0,109680.0,0.62077055]
[1758997827217,8.62546638,109690.0,109680.0,0.24221055]
[1758997827425,8.62546638,109690.0,109680.0,0.52577055]
[1758997827625,8.62546638,109690.0,109680.0,0.62077055]
[1758997830530,8.62546638,109690.0,109680.0,0.24221055]
[1758997830921,8.62546638,109690.0,109680.0,0.62077055]
[1758997831956,8.62547516,109690.0,109680.0,0.62077055]
[1758997832121,8.80780718,109690.0,109680.0,0.24221055]
[1758997832306,8.80780718,109690.0,109680.0,0.62077055]
[1758997834337,8.80780718,109690.0,109680.0,0.24221055]
[1758997834537,8.80780718,109690.0,109680.0,0.62077055]
[1758997839900,9.17549493,109690.0,109680.0,0.02971]
[1758997840102,9.17549493,109690.0,109680.0,0.31327]
[1758997841275,9.14989949,109690.0,109680.0,0.31327]
[1758997841707,9.14989949,109690.0,109680.0,0.30827]
[1758997842125,9.14989949,109690.0,109680.0,0.30927]
[1758997842777,9.14989949,109690.0,109680.0,0.30827]
[1758997843128,9.16420168,109690.0,109680.0,0.31127]
[1758997844427,8.94708647,109690.0,109680.0,0.31127]
[1758997844635,8.94708647,109690.0,109680.0,0.31634]
[1758997844755,8.94708647,109690.0,109680.0,0.31323]
[1758997845782,8.94708647,109690.0,109680.0,0.31127]
[1758997846698,9.12524627,109690.0,109680.0,0.31127]
[1758997851322,9.12524627,109690.0,109680.0,0.02771]
[1758997851540,9.12524627,109690.0,109680.0,0.31127]
[1758997859379,9.12524627,109690.0,109680.0,0.02771]
[1758997859685,9.12524627,109690.0,109680.0,0.31127]
[1758997872227,9.12524804,109690.0,109680.0,0.31127]
[1758997876174,9.09781945,109690.0,109680.0,0.31127]
[1758997877313,9.09781945,109690.0,109680.0,0.31336]
[1758997885796,0.68664,109680.0,109670.0,0.31062595]
[1758997886016,9.22761559,109680.0,109670.0,0.59626595]
[1758997886149,9.25176559,109680.0,109670.0,0.59626595]
[1758997886352,9.43411424,109680.0,109670.0,0.59626595]
[1758997887200,9.43411424,109680.0,109670.0,0.60126595]
[1758997887966,9.43411424,109680.0,109670.0,0.62531595]
[1758997888370,9.22210962,109680.0,109670.0,0.62531595]
[1758997889860,9.22210962,109680.0,109670.0,0.24675595]
[1758997890350,9.22210962,109680.0,109670.0,0.62527595]
[1758997891261,9.22210962,109680.0,109670.0,0.24675595]
[1758997891475,9.22210962,109680.0,109670.0,0.62527595]
[1758997893588,9.22210962,109680.0,109670.0,0.24675595]
[1758997893808,9.22210962,109680.0,109670.0,0.62527595]
[1758997896110,9.22210962,109680.0,109670.0,0.53027595]
[1758997896317,9.22210962,109680.0,109670.0,0.62527595]
[1758997900582,9.22407962,109680.0,109670.0,0.62527595]
[1758997901834,9.02293548,109680.0,109670.0,0.62527595]
[1758997903877,9.02096548,109680.0,109670.0,0.62527595]
[1758997904299,9.02293548,109680.0,109670.0,0.62527595]
[1758997906635,8.8447523,109680.0,109670.0,0.62527595]
[1758997906841,8.84475252,109680.0,109670.0,0.62527595]
[1758997915343,8.83832965,109680.0,109670.0,0.62527595]
[1758997915679,8.84475296,109680.0,109670.0,0.62527595]
[1758997915839,8.66951507,109680.0,109670.0,0.62527595]
[1758997917901,8.48716642,109680.0,109670.0,0.62527595]
[1758997922547,8.51459791,109680.0,109670.0,0.62527595]
[1758997923014,8.15625815,109680.0,109670.0,0.62527595]
[1758997923262,8.51262791,109680.0,109670.0,0.62527595]
[1758997923486,0.46882666,109680.0,109670.0,0.24675595]
[1758997923703,0.46882666,109680.0,109670.0,0.65266526]
[1758997929274,0.46882666,109680.0,109670.0,0.27418526]
[1758997929533,0.46882666,109680.0,109670.0,0.65266526]
[1758997932598,0.46882666,109680.0,109670.0,0.27418526]
[1758997932808,0.46882666,109680.0,109670.0,0.65266526]
[1758997935563,0.46881899,109680.0,109670.0,0.65266526]
[1758997939055,0.47079899,109680.0,109670.0,0.36918526]